[Event "Early-Titled-Tuesday-Blitz-November-28-2023"]
[Site "Chess.com"]
[Date "2023.11.28"]
[Round "6"]
[White "GoValya"]
[Black "zeitnotakrobat"]
[Result "0-1"]
[WhiteElo "2215"]
[BlackElo "2410"]
[TimeControl "180+1"]
[EndTime "9:13:09 PST"]
[Termination "zeitnotakrobat won by resignation"]

1. d4 {[%clk 0:03:00.9]} 1... f5 {[%clk 0:02:59.2]} 2. g3 {[%clk 0:02:59.3]}
2... Nf6 {[%clk 0:02:58.9]} 3. Bg2 {[%clk 0:02:59.1]} 3... g6 {[%clk 0:02:59.4]}
4. c4 {[%clk 0:02:57.7]} 4... Bg7 {[%clk 0:02:59.2]} 5. Nc3 {[%clk 0:02:56.4]}
5... O-O {[%clk 0:02:56.9]} 6. Nh3 {[%clk 0:02:55.4]} 6... d6 {[%clk 0:02:56.2]}
7. d5 {[%clk 0:02:54.6]} 7... Na6 {[%clk 0:02:51.7]} 8. O-O {[%clk 0:02:52.5]}
8... Nc5 {[%clk 0:02:51]} 9. Nf4 {[%clk 0:02:46.4]} 9... Bd7 {[%clk 0:02:47.3]}
10. Be3 {[%clk 0:02:38.3]} 10... a5 {[%clk 0:02:36.5]} 11. Bxc5 {[%clk
0:02:30.5]} 11... dxc5 {[%clk 0:02:34.9]} 12. e4 {[%clk 0:02:30.4]} 12... fxe4
{[%clk 0:02:11.9]} 13. Nxe4 {[%clk 0:02:29.9]} 13... Nxe4 {[%clk 0:02:07.2]} 14.
Bxe4 {[%clk 0:02:29.7]} 14... Bxb2 {[%clk 0:02:03.9]} 15. Rb1 {[%clk 0:02:25.9]}
15... Be5 {[%clk 0:02:02.7]} 16. Nd3 {[%clk 0:02:20.8]} 16... Bd4 {[%clk
0:02:00.7]} 17. Rxb7 {[%clk 0:02:16.9]} 17... Bh3 {[%clk 0:01:57.6]} 18. Bg2
{[%clk 0:02:13.5]} 18... Bxg2 {[%clk 0:01:38]} 19. Kxg2 {[%clk 0:02:13.1]} 19...
Qd6 {[%clk 0:01:34.8]} 20. Qg4 {[%clk 0:01:58.9]} 20... Rf5 {[%clk 0:01:29]} 21.
Rfb1 {[%clk 0:01:40]} 21... Raf8 {[%clk 0:01:28.1]} 22. Rb8 {[%clk 0:01:27.8]}
22... e6 {[%clk 0:01:03.1]} 23. Rxf8+ {[%clk 0:00:54]} 23... Kxf8 {[%clk
0:01:02.7]} 24. dxe6 {[%clk 0:00:29.3]} 24... Qxe6 {[%clk 0:00:59.7]} 25. Qh4
{[%clk 0:00:23.7]} 25... Kg7 {[%clk 0:00:54.9]} 26. Re1 {[%clk 0:00:20.3]} 26...
Rxf2+ {[%clk 0:00:42.3]} 27. Kh1 {[%clk 0:00:12.4]} 27... Qc6+ {[%clk
0:00:41.4]} 28. Qe4 {[%clk 0:00:12.1]} 28... Qxe4+ {[%clk 0:00:40.5]} 29. Rxe4
{[%clk 0:00:12.3]} 29... Rxa2 {[%clk 0:00:39.8]} 30. Re7+ {[%clk 0:00:11.1]}
30... Kh6 {[%clk 0:00:34.5]} 31. Rxc7 {[%clk 0:00:12]} 31... a4 {[%clk
0:00:32.1]} 32. Nxc5 {[%clk 0:00:11.3]} 32... a3 {[%clk 0:00:30.2]} 33. Ne4
{[%clk 0:00:11.1]} 33... Re2 {[%clk 0:00:27.9]} 34. Ra7 {[%clk 0:00:08.4]} 34...
a2 {[%clk 0:00:26.5]} 35. Nd6 {[%clk 0:00:07.3]} 35... a1=Q+ {[%clk 0:00:25.8]}
36. Rxa1 {[%clk 0:00:06.8]} 36... Bxa1 {[%clk 0:00:25.8]} 37. c5 {[%clk
0:00:06.7]} 37... Rc2 {[%clk 0:00:25.1]} 38. Ne4 {[%clk 0:00:06.4]} 38... Rc4
{[%clk 0:00:24.4]} 0-1

[Event "Early-Titled-Tuesday-Blitz-November-28-2023"]
[Site "Chess.com"]
[Date "2023.11.28"]
[Round "6"]
[White "Andrii_Prydun"]
[Black "guillembaches"]
[Result "0-1"]
[WhiteElo "2377"]
[BlackElo "2527"]
[TimeControl "180+1"]
[EndTime "9:13:10 PST"]
[Termination "guillembaches won by resignation"]

1. e4 {[%clk 0:03:00.9]} 1... c5 {[%clk 0:03:00.3]} 2. d4 {[%clk 0:03:00]} 2...
d6 {[%clk 0:03:00.8]} 3. d5 {[%clk 0:02:51.6]} 3... Nf6 {[%clk 0:03:00.1]} 4.
Nc3 {[%clk 0:02:50.5]} 4... g6 {[%clk 0:03:00.4]} 5. Be3 {[%clk 0:02:49.8]} 5...
Bg7 {[%clk 0:03:00.7]} 6. f3 {[%clk 0:02:49.5]} 6... O-O {[%clk 0:02:59.3]} 7.
Qd2 {[%clk 0:02:48.8]} 7... a6 {[%clk 0:02:53.4]} 8. a4 {[%clk 0:02:48.3]} 8...
e6 {[%clk 0:02:52.8]} 9. dxe6 {[%clk 0:02:35.7]} 9... Bxe6 {[%clk 0:02:52.1]}
10. g4 {[%clk 0:02:35.9]} 10... Nc6 {[%clk 0:02:46]} 11. h4 {[%clk 0:02:31.4]}
11... Nd4 {[%clk 0:02:42.7]} 12. h5 {[%clk 0:02:27.9]} 12... Re8 {[%clk
0:02:25.4]} 13. hxg6 {[%clk 0:02:08.5]} 13... fxg6 {[%clk 0:02:24.3]} 14. Bg2
{[%clk 0:02:08.2]} 14... d5 {[%clk 0:02:16.9]} 15. g5 {[%clk 0:01:16.5]} 15...
Nh5 {[%clk 0:02:09.3]} 16. Nh3 {[%clk 0:01:12]} 16... dxe4 {[%clk 0:01:54.8]}
17. Nxe4 {[%clk 0:01:08.7]} 17... Nf5 {[%clk 0:01:37.8]} 18. O-O-O {[%clk
0:00:57.4]} 18... Qb6 {[%clk 0:01:27.4]} 19. c3 {[%clk 0:00:41.6]} 19... Rad8
{[%clk 0:01:21.9]} 20. Bxc5 {[%clk 0:00:39.5]} 20... Rxd2 {[%clk 0:01:11.9]} 21.
Bxb6 {[%clk 0:00:36.8]} 21... Rxg2 {[%clk 0:01:11.8]} 22. Nc5 {[%clk 0:00:34]}
22... Bf7 {[%clk 0:01:05.6]} 23. Nxb7 {[%clk 0:00:20.5]} 23... Rb8 {[%clk
0:00:46]} 24. Rd8+ {[%clk 0:00:19.9]} 24... Rxd8 {[%clk 0:00:45.9]} 25. Nxd8
{[%clk 0:00:19.8]} 25... Bd5 {[%clk 0:00:45.6]} 26. Re1 {[%clk 0:00:18.2]} 26...
Bf8 {[%clk 0:00:22.1]} 27. Re8 {[%clk 0:00:16.9]} 27... Nhg7 {[%clk 0:00:22.1]}
28. Re1 {[%clk 0:00:15.7]} 28... Bxf3 {[%clk 0:00:20.2]} 29. Nf4 {[%clk
0:00:16.3]} 29... Rxg5 {[%clk 0:00:17.7]} 30. Nfe6 {[%clk 0:00:15.2]} 30... Nxe6
{[%clk 0:00:15.4]} 31. Nxe6 {[%clk 0:00:16.1]} 31... Rg2 {[%clk 0:00:15.3]} 32.
Nc7 {[%clk 0:00:12.7]} 32... Re2 {[%clk 0:00:14.6]} 33. Rd1 {[%clk 0:00:10.4]}
33... Be4 {[%clk 0:00:12.9]} 34. Nxa6 {[%clk 0:00:06.4]} 34... Bh6+ {[%clk
0:00:11.7]} 0-1

[Event "Early-Titled-Tuesday-Blitz-November-28-2023"]
[Site "Chess.com"]
[Date "2023.11.28"]
[Round "6"]
[White "LeoLV10"]
[Black "elohunter1999"]
[Result "0-1"]
[WhiteElo "2536"]
[BlackElo "2722"]
[TimeControl "180+1"]
[EndTime "9:13:13 PST"]
[Termination "elohunter1999 won on time"]

1. e4 {[%clk 0:03:00.9]} 1... e6 {[%clk 0:02:55.4]} 2. d4 {[%clk 0:03:00.9]}
2... d5 {[%clk 0:02:56.3]} 3. e5 {[%clk 0:03:01.5]} 3... c5 {[%clk 0:02:53.8]}
4. c3 {[%clk 0:03:02]} 4... Nc6 {[%clk 0:02:54.1]} 5. Nf3 {[%clk 0:03:02.2]}
5... Bd7 {[%clk 0:02:54.6]} 6. a3 {[%clk 0:03:00.7]} 6... Rc8 {[%clk 0:02:49.3]}
7. Bd3 {[%clk 0:02:59.8]} 7... cxd4 {[%clk 0:02:43.1]} 8. cxd4 {[%clk
0:03:00.7]} 8... Qb6 {[%clk 0:02:42.9]} 9. Be2 {[%clk 0:02:47.8]} 9... Na5
{[%clk 0:02:40.9]} 10. Nc3 {[%clk 0:02:42.3]} 10... Ne7 {[%clk 0:02:37.2]} 11.
O-O {[%clk 0:02:41.2]} 11... Nc4 {[%clk 0:02:35.2]} 12. Rb1 {[%clk 0:02:28.4]}
12... Ng6 {[%clk 0:02:27]} 13. h4 {[%clk 0:02:16]} 13... Be7 {[%clk 0:02:19]}
14. h5 {[%clk 0:02:07.8]} 14... Nh4 {[%clk 0:02:16.7]} 15. Nxh4 {[%clk
0:01:42.9]} 15... Bxh4 {[%clk 0:02:17.6]} 16. Qd3 {[%clk 0:01:42.4]} 16... h6
{[%clk 0:02:15.1]} 17. b3 {[%clk 0:01:21.2]} 17... Na5 {[%clk 0:02:11.3]} 18.
Bd2 {[%clk 0:01:06.6]} 18... Be7 {[%clk 0:02:03.3]} 19. b4 {[%clk 0:00:39.2]}
19... Nc4 {[%clk 0:01:57.3]} 20. Bc1 {[%clk 0:00:39.6]} 20... O-O {[%clk
0:01:54.3]} 21. Qg3 {[%clk 0:00:36.6]} 21... Kh8 {[%clk 0:01:52.2]} 22. Rd1
{[%clk 0:00:35.5]} 22... f6 {[%clk 0:01:33.9]} 23. Rb3 {[%clk 0:00:31.7]} 23...
fxe5 {[%clk 0:01:30.2]} 24. dxe5 {[%clk 0:00:32.5]} 24... Rf7 {[%clk 0:01:13.5]}
25. Nb1 {[%clk 0:00:24.8]} 25... Rcf8 {[%clk 0:00:56.1]} 26. Rf3 {[%clk
0:00:22.6]} 26... Rxf3 {[%clk 0:00:54.6]} 27. Bxf3 {[%clk 0:00:22.5]} 27... Be8
{[%clk 0:00:50.2]} 28. Nc3 {[%clk 0:00:18.8]} 28... Rf5 {[%clk 0:00:43]} 29. Be2
{[%clk 0:00:09.3]} 29... Nxe5 {[%clk 0:00:41.2]} 30. Bf4 {[%clk 0:00:09.2]}
30... Nc6 {[%clk 0:00:37.5]} 31. Bd3 {[%clk 0:00:09.2]} 31... Rxh5 {[%clk
0:00:35.7]} 32. Re1 {[%clk 0:00:05.3]} 32... e5 {[%clk 0:00:20.2]} 33. Bd2
{[%clk 0:00:04.1]} 33... e4 {[%clk 0:00:19.4]} 34. Nxd5 {[%clk 0:00:03.9]} 34...
Rxd5 {[%clk 0:00:18.6]} 35. Bxh6 {[%clk 0:00:01.3]} 35... gxh6 {[%clk
0:00:16.2]} 36. Bxe4 {[%clk 0:00:01.6]} 36... Re5 {[%clk 0:00:15.5]} 0-1

[Event "Early-Titled-Tuesday-Blitz-November-28-2023"]
[Site "Chess.com"]
[Date "2023.11.28"]
[Round "6"]
[White "Meri-Arabidze"]
[Black "Zurability"]
[Result "0-1"]
[WhiteElo "2691"]
[BlackElo "2866"]
[TimeControl "180+1"]
[EndTime "9:13:14 PST"]
[Termination "Zurability won on time"]

1. Nf3 {[%clk 0:02:55.3]} 1... d5 {[%clk 0:03:00.1]} 2. c4 {[%clk 0:02:54.4]}
2... e6 {[%clk 0:03:00.1]} 3. g3 {[%clk 0:02:54.2]} 3... Nf6 {[%clk 0:03:00.7]}
4. Bg2 {[%clk 0:02:54.4]} 4... Be7 {[%clk 0:03:01.4]} 5. O-O {[%clk 0:02:54.7]}
5... O-O {[%clk 0:03:01.5]} 6. d4 {[%clk 0:02:54.4]} 6... a5 {[%clk 0:02:51.8]}
7. Nc3 {[%clk 0:02:48.3]} 7... c6 {[%clk 0:02:52.2]} 8. b3 {[%clk 0:02:47.1]}
8... b6 {[%clk 0:02:51.6]} 9. Bb2 {[%clk 0:02:38.9]} 9... Bb7 {[%clk 0:02:48]}
10. Qc2 {[%clk 0:02:34.7]} 10... Na6 {[%clk 0:02:47.2]} 11. Rad1 {[%clk
0:02:33.1]} 11... Rc8 {[%clk 0:02:46.2]} 12. Ne5 {[%clk 0:02:27.3]} 12... Nd7
{[%clk 0:02:33.2]} 13. e4 {[%clk 0:02:22.3]} 13... Nxe5 {[%clk 0:02:14.3]} 14.
dxe5 {[%clk 0:02:21.4]} 14... d4 {[%clk 0:02:13.1]} 15. a3 {[%clk 0:02:11.4]}
15... c5 {[%clk 0:01:53.8]} 16. Ne2 {[%clk 0:02:00.7]} 16... a4 {[%clk
0:01:49.5]} 17. bxa4 {[%clk 0:01:57.8]} 17... Bc6 {[%clk 0:01:47.8]} 18. a5
{[%clk 0:01:33.2]} 18... b5 {[%clk 0:01:44.8]} 19. cxb5 {[%clk 0:00:52.5]} 19...
Bxb5 {[%clk 0:01:43.8]} 20. a4 {[%clk 0:00:53]} 20... Bc6 {[%clk 0:01:32]} 21.
Qd2 {[%clk 0:00:39.4]} 21... Nb4 {[%clk 0:01:19]} 22. f4 {[%clk 0:00:30.8]}
22... Qxa5 {[%clk 0:01:17.3]} 23. f5 {[%clk 0:00:31.1]} 23... exf5 {[%clk
0:00:56.6]} 24. exf5 {[%clk 0:00:32]} 24... Bxg2 {[%clk 0:00:56.4]} 25. f6
{[%clk 0:00:28.2]} 25... Rfe8 {[%clk 0:00:43.6]} 26. Kxg2 {[%clk 0:00:20.5]}
26... Bf8 {[%clk 0:00:43.5]} 27. Nf4 {[%clk 0:00:10.8]} 27... Rxe5 {[%clk
0:00:32.1]} 28. fxg7 {[%clk 0:00:11]} 28... Bxg7 {[%clk 0:00:31.6]} 29. Rde1
{[%clk 0:00:11.3]} 29... Rxe1 {[%clk 0:00:29.2]} 30. Rxe1 {[%clk 0:00:10.8]}
30... Qxa4 {[%clk 0:00:29.8]} 31. Nh5 {[%clk 0:00:06.9]} 31... Qc2 {[%clk
0:00:29.3]} 32. Qxc2 {[%clk 0:00:06.5]} 32... Nxc2 {[%clk 0:00:30.2]} 33. Re7
{[%clk 0:00:05.7]} 33... d3 {[%clk 0:00:23.7]} 34. Nxg7 {[%clk 0:00:03.5]} 34...
d2 {[%clk 0:00:23.6]} 35. Rd7 {[%clk 0:00:02.4]} 35... Nd4 {[%clk 0:00:20.8]}
36. Bxd4 {[%clk 0:00:01.1]} 36... d1=Q {[%clk 0:00:20.8]} 37. Nf5 {[%clk
0:00:01.5]} 37... Qc2+ {[%clk 0:00:20.4]} 0-1

[Event "Early-Titled-Tuesday-Blitz-November-28-2023"]
[Site "Chess.com"]
[Date "2023.11.28"]
[Round "6"]
[White "Cheer_Down"]
[Black "viktorskliarov"]
[Result "0-1"]
[WhiteElo "2486"]
[BlackElo "2628"]
[TimeControl "180+1"]
[EndTime "9:13:15 PST"]
[Termination "viktorskliarov won by resignation"]

1. d4 {[%clk 0:02:53.7]} 1... Nf6 {[%clk 0:02:58]} 2. Nf3 {[%clk 0:02:52.9]}
2... g6 {[%clk 0:02:58.1]} 3. Bf4 {[%clk 0:02:49.7]} 3... Bg7 {[%clk 0:02:58.4]}
4. e3 {[%clk 0:02:49.9]} 4... d6 {[%clk 0:02:58.8]} 5. Be2 {[%clk 0:02:49.7]}
5... O-O {[%clk 0:02:59.3]} 6. O-O {[%clk 0:02:48.4]} 6... c5 {[%clk 0:02:59.5]}
7. c3 {[%clk 0:02:22.5]} 7... Qb6 {[%clk 0:02:58.5]} 8. Qb3 {[%clk 0:02:21.1]}
8... Be6 {[%clk 0:02:58.1]} 9. Qxb6 {[%clk 0:02:19.9]} 9... axb6 {[%clk
0:02:59]} 10. a3 {[%clk 0:02:20]} 10... Nc6 {[%clk 0:02:39.7]} 11. Nbd2 {[%clk
0:02:11.3]} 11... Nh5 {[%clk 0:02:37]} 12. Bg5 {[%clk 0:02:10.9]} 12... h6
{[%clk 0:02:37]} 13. Bh4 {[%clk 0:02:11]} 13... g5 {[%clk 0:02:36.8]} 14. Bg3
{[%clk 0:02:06.7]} 14... Nxg3 {[%clk 0:02:32.7]} 15. hxg3 {[%clk 0:02:06.3]}
15... Na5 {[%clk 0:02:05.4]} 16. Rad1 {[%clk 0:01:56.7]} 16... Nb3 {[%clk
0:01:59]} 17. Nxb3 {[%clk 0:01:56.2]} 17... Bxb3 {[%clk 0:01:59.9]} 18. Rc1
{[%clk 0:01:53]} 18... Ra5 {[%clk 0:01:53]} 19. Nd2 {[%clk 0:01:52]} 19... Be6
{[%clk 0:01:47.2]} 20. Nc4 {[%clk 0:01:35.3]} 20... Bxc4 {[%clk 0:01:37]} 21.
Bxc4 {[%clk 0:01:34.6]} 21... b5 {[%clk 0:01:37.6]} 22. Bd5 {[%clk 0:01:31.6]}
22... b6 {[%clk 0:01:35.5]} 23. f4 {[%clk 0:01:26.2]} 23... e6 {[%clk
0:01:33.2]} 24. Bf3 {[%clk 0:01:23.7]} 24... gxf4 {[%clk 0:01:10.7]} 25. gxf4
{[%clk 0:01:22.4]} 25... b4 {[%clk 0:01:09.1]} 26. axb4 {[%clk 0:01:18.3]} 26...
cxb4 {[%clk 0:01:09.2]} 27. cxb4 {[%clk 0:01:09.2]} 27... Rb5 {[%clk 0:01:09]}
28. Rc2 {[%clk 0:00:51.2]} 28... Rxb4 {[%clk 0:01:07.6]} 29. Ra1 {[%clk
0:00:50.1]} 29... e5 {[%clk 0:01:00.6]} 30. dxe5 {[%clk 0:00:49.3]} 30... dxe5
{[%clk 0:01:00.6]} 31. Ra7 {[%clk 0:00:48.2]} 31... exf4 {[%clk 0:00:59.8]} 32.
exf4 {[%clk 0:00:48.3]} 32... Rxf4 {[%clk 0:00:51]} 33. b3 {[%clk 0:00:46.9]}
33... Bd4+ {[%clk 0:00:46.4]} 34. Kh2 {[%clk 0:00:46.2]} 34... Bc5 {[%clk
0:00:45.3]} 35. Bd5 {[%clk 0:00:43.1]} 35... Kg7 {[%clk 0:00:43.9]} 36. Re2
{[%clk 0:00:41.9]} 36... Rd8 {[%clk 0:00:42.7]} 37. Re4 {[%clk 0:00:35.7]} 37...
Rf5 {[%clk 0:00:30.4]} 38. Rg4+ {[%clk 0:00:30.1]} 38... Kf8 {[%clk 0:00:29.3]}
39. Bc4 {[%clk 0:00:28.7]} 39... b5 {[%clk 0:00:19.9]} 40. Ra5 {[%clk
0:00:09.7]} 40... bxc4 {[%clk 0:00:19.7]} 41. Rxc4 {[%clk 0:00:09.8]} 41... Bd6+
{[%clk 0:00:19.7]} 0-1

[Event "Early-Titled-Tuesday-Blitz-November-28-2023"]
[Site "Chess.com"]
[Date "2023.11.28"]
[Round "6"]
[White "karinachess1"]
[Black "Qvalda"]
[Result "0-1"]
[WhiteElo "2574"]
[BlackElo "2425"]
[TimeControl "180+1"]
[EndTime "9:13:15 PST"]
[Termination "Qvalda won by resignation"]

1. d4 {[%clk 0:03:00.9]} 1... d5 {[%clk 0:02:58.5]} 2. c4 {[%clk 0:03:01.1]}
2... dxc4 {[%clk 0:02:59.4]} 3. Nf3 {[%clk 0:02:58.1]} 3... Nf6 {[%clk
0:02:59.6]} 4. e3 {[%clk 0:02:58.6]} 4... Bg4 {[%clk 0:03:00.1]} 5. h3 {[%clk
0:02:57.5]} 5... Bh5 {[%clk 0:02:59.1]} 6. Bxc4 {[%clk 0:02:55]} 6... e6 {[%clk
0:02:59.6]} 7. Nc3 {[%clk 0:02:53]} 7... Nbd7 {[%clk 0:02:57.7]} 8. Qe2 {[%clk
0:02:45.2]} 8... Bb4 {[%clk 0:02:55.1]} 9. O-O {[%clk 0:02:44.8]} 9... O-O
{[%clk 0:02:52.5]} 10. e4 {[%clk 0:02:37.9]} 10... e5 {[%clk 0:02:24.2]} 11. g4
{[%clk 0:01:38.1]} 11... Nxg4 {[%clk 0:01:57.4]} 12. hxg4 {[%clk 0:01:39]} 12...
Bxg4 {[%clk 0:01:57.5]} 13. d5 {[%clk 0:01:36.4]} 13... f5 {[%clk 0:01:22.8]}
14. Qe3 {[%clk 0:00:50.9]} 14... Bc5 {[%clk 0:01:05.1]} 15. d6+ {[%clk
0:00:48.3]} 15... Kh8 {[%clk 0:01:02.3]} 16. dxc7 {[%clk 0:00:42.8]} 16... Qe8
{[%clk 0:00:41.8]} 17. Qg5 {[%clk 0:00:35.9]} 17... Bxf3 {[%clk 0:00:34.7]} 18.
exf5 {[%clk 0:00:23.5]} 18... Be7 {[%clk 0:00:14.9]} 19. Qg3 {[%clk 0:00:20.1]}
19... Rxf5 {[%clk 0:00:14.5]} 20. Be6 {[%clk 0:00:19.5]} 20... Rf6 {[%clk
0:00:12.8]} 21. Bg4 {[%clk 0:00:06.7]} 21... Bxg4 {[%clk 0:00:11.6]} 22. Ne4
{[%clk 0:00:03]} 22... Rg6 {[%clk 0:00:11.3]} 23. Kh2 {[%clk 0:00:03.4]} 23...
Bf5 {[%clk 0:00:08.7]} 24. Qf3 {[%clk 0:00:02.6]} 24... Bxe4 {[%clk 0:00:08.3]}
25. Qxe4 {[%clk 0:00:03.5]} 25... Rc8 {[%clk 0:00:06.2]} 26. Be3 {[%clk
0:00:03]} 26... Nf6 {[%clk 0:00:06.2]} 27. Qf5 {[%clk 0:00:02.9]} 27... Ng4+
{[%clk 0:00:05.3]} 28. Kh1 {[%clk 0:00:02.9]} 28... Nxe3 {[%clk 0:00:04.1]} 29.
fxe3 {[%clk 0:00:03.8]} 29... Rf6 {[%clk 0:00:04]} 30. Qh3 {[%clk 0:00:03.5]}
30... Rxc7 {[%clk 0:00:03.1]} 31. Rxf6 {[%clk 0:00:02.8]} 31... Bxf6 {[%clk
0:00:04]} 32. Rc1 {[%clk 0:00:03.2]} 32... Rxc1+ {[%clk 0:00:03.5]} 0-1

[Event "Early-Titled-Tuesday-Blitz-November-28-2023"]
[Site "Chess.com"]
[Date "2023.11.28"]
[Round "6"]
[White "Statham_l3"]
[Black "Crasmus"]
[Result "0-1"]
[WhiteElo "2553"]
[BlackElo "2280"]
[TimeControl "180+1"]
[EndTime "9:13:16 PST"]
[Termination "Crasmus won on time"]

1. e4 {[%clk 0:03:00.9]} 1... c5 {[%clk 0:03:00.9]} 2. Nf3 {[%clk 0:02:59.9]}
2... e6 {[%clk 0:03:01.4]} 3. d4 {[%clk 0:02:57.5]} 3... cxd4 {[%clk 0:03:02.3]}
4. Nxd4 {[%clk 0:02:58.4]} 4... a6 {[%clk 0:03:02.9]} 5. Bd3 {[%clk 0:02:55.5]}
5... Qc7 {[%clk 0:03:03.3]} 6. Nc3 {[%clk 0:02:51.5]} 6... Nf6 {[%clk
0:03:03.4]} 7. Qe2 {[%clk 0:02:47.5]} 7... Bb4 {[%clk 0:02:51]} 8. Bd2 {[%clk
0:02:47.3]} 8... Nc6 {[%clk 0:02:49.8]} 9. Nxc6 {[%clk 0:02:39.2]} 9... dxc6
{[%clk 0:02:49.8]} 10. e5 {[%clk 0:02:25]} 10... Nd5 {[%clk 0:02:49.2]} 11. O-O
{[%clk 0:02:13]} 11... Nxc3 {[%clk 0:02:47.2]} 12. bxc3 {[%clk 0:02:11]} 12...
Be7 {[%clk 0:02:46.3]} 13. Rae1 {[%clk 0:01:54.5]} 13... c5 {[%clk 0:02:43.9]}
14. Be4 {[%clk 0:01:50.2]} 14... Bd7 {[%clk 0:02:43.5]} 15. f4 {[%clk
0:01:47.9]} 15... Bc6 {[%clk 0:02:13.5]} 16. f5 {[%clk 0:01:47.2]} 16... Bxe4
{[%clk 0:02:05.4]} 17. Qxe4 {[%clk 0:01:45.3]} 17... O-O-O {[%clk 0:01:57.2]}
18. Bf4 {[%clk 0:01:34.8]} 18... Rd5 {[%clk 0:01:39.3]} 19. f6 {[%clk
0:01:23.9]} 19... gxf6 {[%clk 0:01:36.4]} 20. exf6 {[%clk 0:01:22.5]} 20... Bd6
{[%clk 0:01:36.7]} 21. h3 {[%clk 0:00:52.3]} 21... Bxf4 {[%clk 0:01:23.8]} 22.
Rxf4 {[%clk 0:00:53.2]} 22... Rg8 {[%clk 0:01:13.8]} 23. Rg4 {[%clk 0:00:41.7]}
23... Rgd8 {[%clk 0:01:00.9]} 24. Rg7 {[%clk 0:00:36.4]} 24... Rd2 {[%clk
0:00:56.9]} 25. Qe5 {[%clk 0:00:26.2]} 25... Qc6 {[%clk 0:00:51.3]} 26. Qe4
{[%clk 0:00:25.5]} 26... Qd6 {[%clk 0:00:48.6]} 27. Rxf7 {[%clk 0:00:22.7]}
27... Rd7 {[%clk 0:00:48.8]} 28. Rxd7 {[%clk 0:00:18.6]} 28... Qxd7 {[%clk
0:00:49.7]} 29. Qxe6 {[%clk 0:00:16.3]} 29... Qxe6 {[%clk 0:00:37.8]} 30. Rxe6
{[%clk 0:00:11.6]} 30... Kd7 {[%clk 0:00:38.7]} 31. Re7+ {[%clk 0:00:10.3]}
31... Kd6 {[%clk 0:00:31.7]} 32. Rxb7 {[%clk 0:00:08.4]} 32... Rd1+ {[%clk
0:00:32.1]} 33. Kh2 {[%clk 0:00:07.5]} 33... Rf1 {[%clk 0:00:32.6]} 34. Ra7
{[%clk 0:00:06.1]} 34... Kd5 {[%clk 0:00:29.3]} 35. Rxa6 {[%clk 0:00:05.5]}
35... Kc4 {[%clk 0:00:29.5]} 36. Rc6 {[%clk 0:00:04.7]} 36... Kb5 {[%clk
0:00:26.5]} 0-1

[Event "Early-Titled-Tuesday-Blitz-November-28-2023"]
[Site "Chess.com"]
[Date "2023.11.28"]
[Round "6"]
[White "RebecaJimnz"]
[Black "RodokininEV"]
[Result "0-1"]
[WhiteElo "2314"]
[BlackElo "2614"]
[TimeControl "180+1"]
[EndTime "9:13:17 PST"]
[Termination "RodokininEV won on time"]

1. e4 {[%clk 0:03:00.9]} 1... c5 {[%clk 0:03:00.2]} 2. Nc3 {[%clk 0:03:01]} 2...
a6 {[%clk 0:03:00]} 3. g3 {[%clk 0:03:01.7]} 3... b5 {[%clk 0:02:59.5]} 4. Bg2
{[%clk 0:03:02.6]} 4... Bb7 {[%clk 0:02:59.3]} 5. d3 {[%clk 0:03:03.2]} 5... e6
{[%clk 0:02:56.4]} 6. Nge2 {[%clk 0:03:00.1]} 6... b4 {[%clk 0:02:53.8]} 7. Nb1
{[%clk 0:02:55.5]} 7... d5 {[%clk 0:02:54.7]} 8. exd5 {[%clk 0:02:55.4]} 8...
Bxd5 {[%clk 0:02:53.9]} 9. O-O {[%clk 0:02:47.3]} 9... Nf6 {[%clk 0:02:51.9]}
10. Bg5 {[%clk 0:02:37.2]} 10... Be7 {[%clk 0:02:51.3]} 11. Nf4 {[%clk
0:02:27.3]} 11... Bxg2 {[%clk 0:02:46.7]} 12. Nxg2 {[%clk 0:02:23.2]} 12... Nc6
{[%clk 0:02:44.2]} 13. Nd2 {[%clk 0:02:22.9]} 13... Nd4 {[%clk 0:02:37.8]} 14.
Ne3 {[%clk 0:01:59.2]} 14... O-O {[%clk 0:02:33.7]} 15. Bxf6 {[%clk 0:01:58.2]}
15... Bxf6 {[%clk 0:02:32.5]} 16. Ne4 {[%clk 0:01:58.9]} 16... Be7 {[%clk
0:02:32]} 17. c3 {[%clk 0:01:49.7]} 17... Nf5 {[%clk 0:02:23.5]} 18. Qe2 {[%clk
0:01:21.4]} 18... a5 {[%clk 0:02:21.1]} 19. Nxf5 {[%clk 0:01:15.6]} 19... exf5
{[%clk 0:02:21]} 20. Nd2 {[%clk 0:01:15.9]} 20... Bf6 {[%clk 0:02:17.5]} 21.
Rac1 {[%clk 0:01:09.9]} 21... Re8 {[%clk 0:02:11.1]} 22. Qf3 {[%clk 0:01:10.3]}
22... g6 {[%clk 0:02:08.8]} 23. Nc4 {[%clk 0:01:10.4]} 23... a4 {[%clk
0:02:06.5]} 24. a3 {[%clk 0:00:46.1]} 24... bxc3 {[%clk 0:01:54.6]} 25. bxc3
{[%clk 0:00:47]} 25... Qc7 {[%clk 0:01:55.1]} 26. Ne3 {[%clk 0:00:42.4]} 26...
Bg7 {[%clk 0:01:39.2]} 27. Nd5 {[%clk 0:00:39.7]} 27... Qa5 {[%clk 0:01:38]} 28.
Rfe1 {[%clk 0:00:34.5]} 28... Rxe1+ {[%clk 0:01:31.3]} 29. Rxe1 {[%clk
0:00:35.4]} 29... Rd8 {[%clk 0:01:24.1]} 30. Ne7+ {[%clk 0:00:34.6]} 30... Kf8
{[%clk 0:01:17.9]} 31. Qb7 {[%clk 0:00:17.1]} 31... Qa8 {[%clk 0:01:00.5]} 32.
Qb5 {[%clk 0:00:09.6]} 32... Bxc3 {[%clk 0:00:56.2]} 33. Rc1 {[%clk 0:00:05.1]}
33... Bd4 {[%clk 0:00:52.1]} 34. Nc6 {[%clk 0:00:04.3]} 34... Re8 {[%clk
0:00:45]} 35. Nxd4 {[%clk 0:00:04.1]} 35... cxd4 {[%clk 0:00:45.9]} 36. Qc5+
{[%clk 0:00:04.4]} 36... Kg8 {[%clk 0:00:44.1]} 37. Qxd4 {[%clk 0:00:04.8]}
37... Qf3 {[%clk 0:00:38.5]} 38. Qxa4 {[%clk 0:00:02.7]} 38... Re2 {[%clk
0:00:31.6]} 39. Qd4 {[%clk 0:00:02.7]} 39... Re8 {[%clk 0:00:23.9]} 40. Qd7
{[%clk 0:00:02.8]} 40... Qa8 {[%clk 0:00:20.4]} 41. d4 {[%clk 0:00:01.8]} 41...
Rd8 {[%clk 0:00:20.7]} 0-1